fUSD/lending_fUSD_20250108
["ID","MTS","AMOUNT","RATE_DAILY","PERIOD"]
[348120730,1736335842488,-500.0,0.00010498,2]
[348120731,1736335842498,-574.3891508,0.00010498,2]
[348120732,1736335842507,-500.0,0.00010498,2]
[348120733,1736335842517,-500.0,0.00010498,2]
[348120734,1736335842526,-500.0,0.00010498,2]
[348120735,1736335842535,-500.0,0.00010498,2]
[348120736,1736335842545,-500.0,0.00010498,2]
[348120737,1736335842555,-500.0,0.00010498,2]
[348120738,1736335842565,-500.0,0.00010498,2]
[348120739,1736335842576,-500.0,0.00010498,2]
[348120740,1736335842585,-505.00023729,0.00010498,2]
[348120741,1736335842595,-500.0,0.00010498,2]
[348120742,1736335842604,-500.0,0.00010498,2]
[348120743,1736335842614,-500.0,0.00010498,2]
[348120744,1736335842624,-500.0,0.00010498,2]
[348120745,1736335842633,-500.0,0.00010498,2]
[348120746,1736335842643,-500.0,0.00010498,2]
[348120747,1736335842652,-500.0,0.00010498,2]
[348120748,1736335842662,-500.0,0.00010498,2]
[348120749,1736335842672,-500.0,0.00010498,2]
[348120750,1736335842681,-2245.8327838,0.00010498,2]
[348120751,1736335842691,-500.0,0.00010498,2]
[348120752,1736335842700,-500.0,0.00010498,2]
[348120753,1736335842709,-471.411506,0.00010498,2]
[348120754,1736335842720,-8982.0525576,0.00010498,2]
[348120755,1736335842730,-500.0,0.00010498,2]
[348120756,1736335842740,-500.0,0.00010498,2]
[348120757,1736335842749,-680.20662926,0.00010498,2]
[348120758,1736335842759,-500.0,0.00010498,2]
[348120759,1736335842768,-500.0,0.00010498,2]
[348120760,1736335842778,-250000.0,0.00010499,2]
[348120761,1736335842789,-500.0,0.00010499,2]
[348120762,1736335842798,-3000.0,0.00010499,2]
[348120763,1736335842808,-1002.0,0.000105,2]
[348120764,1736335842818,-2016782.92175902,0.000105,5]
[348120765,1736335842848,-385.87238127,9.999e-05,2]
[348120766,1736335842866,-933.29761873,9.999e-05,2]
[348120767,1736335842876,-65030.99207514,0.000105,5]
[348120768,1736335842888,-9579.61410483,0.000105,5]
[348120769,1736335842899,-406.5810736,0.000105,5]
[348120777,1736335843145,-500.0,9.999e-05,2]
[348120778,1736335843155,-1319.17,0.00010273,2]
[348120779,1736335843165,-12577.44946613,0.000105,5]
[348120780,1736335843176,-1693.55000005,0.000105,5]
[348120781,1736335843188,-1197.36579206,0.000105,5]
[348120782,1736335843200,-2692.47478749,0.000105,5]
[348120784,1736335843220,-3921.6432,0.000105,5]
[348120785,1736335843231,-1021.095,0.000105,5]
[348120786,1736335843243,-483.21795857,0.000105,5]
[348120787,1736335843254,-452.45572213,0.000105,5]
[348120788,1736335843283,-762.84,0.000105,5]
[348120789,1736335843294,-622.68,0.000105,5]
[348120790,1736335843306,-3727.22525449,0.000105,5]
[348120791,1736335843317,-2398.2629345,0.000105,5]
[348120792,1736335843357,-500.0,9.999e-05,2]
[348120793,1736335843367,-33.699318,0.000105,5]
[348120794,1736335843379,-418.59099643,0.000105,5]
[348120795,1736335843391,-297.82867182,0.000105,5]
[348120810,1736335844208,-500.0,9.999e-05,2]
[348120811,1736335844219,-500.0,0.00010271,2]
[348120812,1736335844229,-500.0,0.00010499,2]
[348120813,1736335844239,-6264.0017081,0.000105,5]
[348120814,1736335844250,-5358.95820267,0.000105,5]
[348120815,1736335844272,-276.29565446,0.000105,5]
[348120816,1736335844284,-402.6,0.000105,5]
[348120817,1736335844295,-12917.83962908,0.000105,5]
[348120818,1736335844306,-30504.00000001,0.000105,5]
[348120819,1736335844317,-535347.93486394,0.000105,5]
[348120820,1736335844329,-3197.54513101,0.000105,5]
[348120821,1736335844356,-709.60652099,0.000105,5]
[348120822,1736335844367,-267.180579,0.000105,5]
[348120826,1736335846246,-500.0,0.00010499,2]
[348120827,1736335846256,-500.0,0.00010499,2]
[348120828,1736335846266,-192.02,0.00010499,2]
[348120829,1736335846275,-7704.83184912,0.000105,5]
[348120830,1736335846286,-7593.63502307,0.000105,5]
[348120831,1736335846297,-1823.50243452,0.000105,5]
[348120832,1736335846308,-2184.54012217,0.000105,5]
[348120833,1736335846326,-1139.1771887,0.000105,5]
[348120834,1736335846337,-4011.775974,0.000105,5]
[348120835,1736335846348,-2611.4125,0.000105,5]
[348120836,1736335846359,-1955.8075663,0.000105,5]
[348120837,1736335846371,-2074.8974902,0.000105,5]
[348120838,1736335846387,-2936.358994,0.000105,5]
[348120839,1736335846398,-5342.2933895,0.000105,5]
[348120840,1736335846409,-3373.4755,0.000105,5]
[348120841,1736335846452,-48821.01897515,0.000105,5]
[348120842,1736335846495,-324.4,0.000105,5]
[348121044,1736337032640,-168.60385471,7.761e-05,2]
[348121045,1736337032651,-636.6,8.219e-05,2]
[348121046,1736337032661,-2507.28,8.757e-05,2]
[348121047,1736337032671,-2565.43,8.807e-05,2]
[348121048,1736337032680,-1501.80896543,8.807e-05,2]
[348121049,1736337032691,-14615.97967031,8.807e-05,2]
[348121050,1736337032701,-250.0,8.825e-05,2]
[348121051,1736337032711,-23900.0,8.847e-05,2]
[348121052,1736337032721,-250.0,8.893e-05,2]
[348121053,1736337032731,-499.67,9.028e-05,2]
[348121054,1736337032741,-250.0,9.035e-05,2]
[348121055,1736337032752,-508.06,9.091e-05,2]
[348121056,1736337032763,-493.58,9.119e-05,2]
[348121057,1736337032775,-428.33,9.168e-05,2]
[348121058,1736337032786,-502.32,9.23e-05,2]
[348121059,1736337032796,-496.85,9.284e-05,2]
[348121060,1736337032807,-150.0,9.384e-05,2]
[348121061,1736337032817,-495.32,9.384e-05,2]
[348121062,1736337032827,-505.37,9.384e-05,2]
[348121063,1736337032837,-496.73,9.384e-05,2]
[348121064,1736337032848,-494.21,9.384e-05,2]
[348121065,1736337032858,-500.24,9.384e-05,2]
[348121066,1736337032868,-508.68,9.384e-05,2]
[348121067,1736337032878,-490.31,9.385e-05,2]
[348121068,1736337032887,-501.3,9.385e-05,2]
[348121069,1736337032897,-151.45,9.385e-05,2]
[348121070,1736337032907,-500.4,9.385e-05,2]
[348121071,1736337032916,-490.14,9.385e-05,2]
[348121072,1736337032925,-505.93,9.385e-05,2]
[348121073,1736337032936,-490.72,9.385e-05,2]
[348121074,1736337032946,-508.54,9.385e-05,2]
[348121075,1736337032956,-746.93,9.385e-05,2]
[348121076,1736337032966,-509.49,9.44e-05,2]
[348121077,1736337032975,-496.34,9.44e-05,2]
[348121078,1736337032986,-491.33,9.44e-05,2]
[348121079,1736337032997,-503.15,9.44e-05,2]
[348121080,1736337033007,-506.06,9.44e-05,2]
[348121081,1736337033016,-495.43,9.44e-05,2]
[348121082,1736337033027,-497.14,9.44e-05,2]
[348121083,1736337033037,-1000.0,9.44e-05,2]
[348121084,1736337033047,-150.0,9.444e-05,2]
[348121085,1736337033057,-300.57,9.778e-05,2]
[348121086,1736337033067,-150.0,9.801e-05,2]
[348121087,1736337033076,-150.0,9.881e-05,2]
[348121088,1736337033087,-150.93,9.885e-05,2]
[348121089,1736337033098,-152.13,9.885e-05,2]
[348121090,1736337033108,-150.53,9.885e-05,2]
[348121091,1736337033119,-151.69,9.9e-05,2]
[348121092,1736337033129,-506.62,9.9e-05,2]
[348121093,1736337033140,-495.85,9.9e-05,2]
[348121094,1736337033150,-152.29,9.9e-05,2]
[348121095,1736337033161,-509.18,9.9e-05,2]
[348121096,1736337033172,-501.91,9.9e-05,2]
[348121097,1736337033182,-500.04,9.9e-05,2]
[348121098,1736337033192,-507.69,9.9e-05,2]
[348121099,1736337033202,-498.69,9.9e-05,2]
[348121100,1736337033211,-152.55,9.94e-05,2]
[348121101,1736337033221,-150.03,9.94e-05,2]
[348121102,1736337033231,-150.6,9.94e-05,2]
[348121103,1736337033241,-150.98,9.94e-05,2]
[348121104,1736337033250,-154.324,9.97e-05,2]
[348121105,1736337033259,-151.14,9.973e-05,2]
[348121106,1736337033269,-492.4,9.973e-05,2]
[348121107,1736337033278,-507.8,9.973e-05,2]
[348121108,1736337033288,-498.04,9.977e-05,2]
[348121109,1736337033297,-152.88,9.993e-05,2]
[348121110,1736337033307,-816.26,9.997e-05,2]
[348121111,1736337033316,-1344.01,9.997e-05,2]
[348121112,1736337033325,-747.46,9.997e-05,2]
[348121113,1736337033335,-500.0,9.997e-05,2]
[348121114,1736337033347,-500.0,9.997e-05,2]
[348121115,1736337033357,-500.0,9.997e-05,2]
[348121116,1736337033367,-1619.83,9.997e-05,2]
[348121117,1736337033377,-894.06,9.997e-05,2]
[348121118,1736337033388,-500.0,9.997e-05,2]
[348121119,1736337033398,-500.0,9.997e-05,2]
[348121120,1736337033408,-500.0,9.997e-05,2]
[348121121,1736337033418,-600.93,9.997e-05,2]
[348121122,1736337033428,-500.0,9.997e-05,2]
[348121123,1736337033438,-500.0,9.997e-05,2]
[348121124,1736337033449,-500.0,9.997e-05,2]
[348121125,1736337033458,-1076.18,9.997e-05,2]
[348121126,1736337033468,-896.85,9.997e-05,2]
[348121127,1736337033479,-2319.81,9.997e-05,2]
[348121128,1736337033488,-4138.65,9.997e-05,2]
[348121129,1736337033498,-500.0,9.997e-05,2]
[348121130,1736337033507,-500.0,9.997e-05,2]
[348121131,1736337033518,-2051.41,9.997e-05,2]
[348121132,1736337033528,-500.0,9.997e-05,2]
[348121133,1736337033539,-500.0,9.997e-05,2]
[348121134,1736337033550,-500.43,9.999e-05,2]
[348121135,1736337033561,-500.0,9.999e-05,2]
[348121136,1736337033571,-500.0,9.999e-05,2]
[348121137,1736337033581,-500.0,9.999e-05,2]
[348121138,1736337033592,-500.0,9.999e-05,2]
[348121139,1736337033602,-901.9,9.999e-05,2]
[348121140,1736337033613,-500.0,9.999e-05,2]
[348121141,1736337033623,-500.0,9.999e-05,2]
[348121142,1736337033634,-1050.99,9.999e-05,2]
[348121143,1736337033645,-500.0,9.999e-05,2]
[348121144,1736337033655,-500.0,9.999e-05,2]
[348121145,1736337033665,-500.0,9.999e-05,2]
[348121146,1736337033676,-681.21,9.999e-05,2]
[348121147,1736337033687,-500.0,9.999e-05,2]
[348121148,1736337033697,-840.26,9.999e-05,2]
[348121149,1736337033707,-500.0,9.999e-05,2]
[348121150,1736337033717,-500.0,9.999e-05,2]
[348121151,1736337033727,-500.0,9.999e-05,7]
[348121152,1736337033737,-500.0,9.999e-05,2]
[348121153,1736337033748,-500.0,9.999e-05,2]
[348121154,1736337033758,-500.0,9.999e-05,2]
[348121155,1736337033772,-500.0,9.999e-05,2]
[348121156,1736337033782,-500.0,9.999e-05,2]
[348121157,1736337033792,-500.0,9.999e-05,2]
[348121158,1736337033802,-1171.96,9.999e-05,2]
[348121159,1736337033811,-500.0,9.999e-05,2]
[348121160,1736337033822,-500.0,9.999e-05,2]
[348121161,1736337033833,-555.97,9.999e-05,2]
[348121162,1736337033844,-500.0,9.999e-05,2]
[348121163,1736337033853,-500.0,9.999e-05,2]
[348121164,1736337033863,-500.0,9.999e-05,2]
[348121165,1736337033872,-500.0,9.999e-05,2]
[348121166,1736337033882,-500.0,9.999e-05,2]
[348121167,1736337033892,-500.0,9.999e-05,2]
[348121168,1736337033901,-500.0,9.999e-05,2]
[348121169,1736337033911,-500.0,9.999e-05,2]
[348121170,1736337033924,-500.0,9.999e-05,2]
[348121171,1736337033934,-500.0,9.999e-05,2]
[348121172,1736337033943,-635.39269111,9.999e-05,2]
[348121173,1736337033953,-505.00023729,9.999e-05,2]
[348121174,1736337033963,-500.0,9.999e-05,2]
[348121175,1736337033973,-1000.0,9.999e-05,2]
[348121176,1736337033983,-500.0,9.999e-05,2]
[348121177,1736337033993,-500.0,9.999e-05,2]
[348121178,1736337034002,-500.0,9.999e-05,2]
[348121179,1736337034013,-500.0,9.999e-05,2]
[348121180,1736337034023,-500.0,9.999e-05,2]
[348121181,1736337034033,-500.0,9.999e-05,2]
[348121182,1736337034043,-500.0,9.999e-05,2]
[348121183,1736337034052,-500.0,9.999e-05,2]
[348121184,1736337034062,-500.0,9.999e-05,2]
[348121185,1736337034072,-500.0,9.999e-05,2]
[348121186,1736337034082,-500.0,9.999e-05,2]
[348121187,1736337034091,-500.0,9.999e-05,2]
[348121188,1736337034101,-500.0,9.999e-05,2]
[348121189,1736337034111,-500.0,9.999e-05,2]
[348121190,1736337034120,-1760.68,9.999e-05,2]
[348121191,1736337034130,-500.0,9.999e-05,2]
[348121192,1736337034140,-500.0,9.999e-05,2]
[348121193,1736337034150,-500.0,9.999e-05,2]
[348121194,1736337034159,-500.0,9.999e-05,2]
[348121195,1736337034169,-500.0,9.999e-05,2]
[348121196,1736337034179,-500.0,9.999e-05,2]
[348121197,1736337034191,-500.0,9.999e-05,2]
[348121198,1736337034201,-500.0,9.999e-05,2]
[348121199,1736337034211,-500.0,9.999e-05,2]
[348121200,1736337034226,-1292.07,9.999e-05,2]
[348121201,1736337034236,-500.0,9.999e-05,2]
[348121202,1736337034246,-500.0,9.999e-05,2]
[348121203,1736337034255,-500.0,9.999e-05,2]
[348121204,1736337034265,-500.0,9.999e-05,2]
[348121205,1736337034275,-500.0,9.999e-05,2]
[348121206,1736337034284,-500.0,9.999e-05,2]
[348121207,1736337034293,-500.0,9.999e-05,2]
[348121208,1736337034303,-17500.6932248,9.999e-05,4]
[348121209,1736337034312,-471.411506,9.999e-05,2]
[348121210,1736337034322,-614.36,9.999e-05,2]
[348121211,1736337034332,-500.0,9.999e-05,2]
[348121212,1736337034342,-500.0,9.999e-05,2]
[348121213,1736337034352,-582.97,9.999e-05,2]
[348121214,1736337034361,-500.0,9.999e-05,2]
[348121215,1736337034371,-500.0,9.999e-05,2]
[348121216,1736337034380,-546.46,9.999e-05,2]
[348121217,1736337034390,-500.0,9.999e-05,2]
[348121218,1736337034399,-500.0,9.999e-05,2]
[348121219,1736337034409,-500.0,9.999e-05,2]
[348121220,1736337034418,-500.0,9.999e-05,2]
[348121221,1736337034428,-500.0,9.999e-05,2]
[348121222,1736337034438,-500.0,9.999e-05,2]
[348121223,1736337034447,-500.0,9.999e-05,2]
[348121224,1736337034456,-184.03,0.0001,2]
[348121225,1736337034467,-652.14007403,0.0001,2]
[348121226,1736337034476,-6178.0,0.0001,2]
[348121227,1736337034485,-103515.20001052,0.0001,2]
[348121228,1736337034758,-23431.99996885,0.0001,2]
[348121229,1736337034858,-2372.95696543,0.0001,2]
[348121230,1736337034871,-630.432,0.0001,2]
[348121231,1736337034888,-4978.06733953,0.0001,2]
[348121232,1736337034901,-286.03575,0.0001,2]
[348121233,1736337034912,-34970.26422294,0.0001,2]
[348121234,1736337034924,-9988.11382958,0.0001,2]
[348121235,1736337034941,-952.952,0.0001,2]
[348121236,1736337034952,-527.77245425,0.0001,2]
[348121237,1736337034963,-2889.49006936,0.0001,2]
[348121238,1736337034972,-1668.33625334,0.0001,2]
[348121239,1736337034981,-29899.91168606,0.0001,2]
[348121240,1736337034992,-20629.24754288,0.0001,2]
[348121241,1736337036906,-373.46,9.39e-05,2]
[348121242,1736337036918,-21817.32375707,0.0001,2]
[348121243,1736337036930,-5056.73125521,0.0001,2]
[348121244,1736337036942,-1901.9,0.0001,2]
[348121245,1736337036953,-450.1191911,0.0001,2]
[348121246,1736337036965,-1107.64615845,0.0001,2]
[348121247,1736337036992,-254.10333359,0.0001,2]
[348121248,1736337037006,-475.285,0.0001,2]
[348121249,1736337037068,-644.666761,0.0001,2]
[348121250,1736337037081,-95011.00000003,0.0001,2]
[348121372,1736337038308,-503.598,0.0001,2]
[348121375,1736337038320,-542.92,0.0001,2]
[348121384,1736337038398,-47519.0,0.0001,2]
[348121386,1736337038409,-6111.47266874,0.0001,2]
[348121392,1736337038461,-2080.000001,0.0001,2]
[348121395,1736337038472,-1209.36502476,0.0001,2]
[348121397,1736337038484,-12900.41591259,0.0001,2]
[348121399,1736337038495,-2430.64985913,0.0001,2]
[348121403,1736337038524,-1037.21010844,0.0001,2]
[348121411,1736337038588,-90665.74358268,0.0001,2]
[348121432,1736337038784,-900.63146412,0.0001,2]
[348121435,1736337038795,-1972.34,0.0001,2]
[348121437,1736337038807,-699.54,0.0001,2]
[348121439,1736337038817,-193172.23777553,0.0001,2]
[348121441,1736337038828,-4708.0,0.0001,2]
[348121443,1736337038839,-521.74533198,0.0001,2]
[348121445,1736337038852,-517.17722964,0.0001,2]
[348121448,1736337038863,-492.3,0.0001,2]
[348121450,1736337038884,-950.0,0.0001,2]
[348121606,1736337040467,-652.98174557,0.0001,2]
[348121608,1736337040478,-790.64458135,0.0001,2]
[348121617,1736337040557,-286.108,0.0001,2]
[348121619,1736337040569,-1145.872,0.0001,2]
[348121626,1736337040630,-1001.98995661,0.0001,2]
[348121628,1736337040642,-7341.13468138,0.0001,2]
[348121630,1736337040653,-2742.62162328,0.0001,2]
[348121633,1736337040665,-948.16722,0.0001,2]
[348121635,1736337040676,-1786.92343689,0.0001,2]
[348121638,1736337040697,-1906.0,0.0001,2]
[348121647,1736337040774,-94755.0,0.0001,2]
[348121662,1736337040979,-5551.13578196,0.0001,2]
[348121664,1736337040991,-41192.13932896,0.0001,2]
[348121666,1736337041001,-209.32308291,0.0001,2]
[348121668,1736337041010,-150.0,0.00010014,2]
[348121670,1736337041019,-1500.0,0.00010058,2]
[348121672,1736337041029,-1000.0,0.00010073,2]
[348121674,1736337041038,-209.32308291,0.00010131,2]
[348121676,1736337041047,-848.8,0.00010137,2]
[348121678,1736337041057,-150.0,0.00010162,2]
[348121680,1736337041066,-13423.3187,0.00010173,2]
[348121682,1736337041075,-150.0,0.00010217,2]
[348121684,1736337041085,-150.0,0.00010254,2]
[348121686,1736337041095,-1103.0,0.00010254,2]
[348121688,1736337041106,-1677.769,0.00010269,2]
[348121690,1736337041115,-152.603,0.00010269,2]
[348121692,1736337041124,-1734.03,0.0001027,2]
[348121694,1736337041133,-947.95,0.0001027,2]
[348121696,1736337041143,-2853.31,0.0001027,2]
[348121698,1736337041152,-2519.32,0.0001027,2]
[348121700,1736337041161,-500.0,0.0001027,2]
[348121702,1736337041170,-1115.9,0.0001027,2]
[348121704,1736337041180,-2114.24,0.0001027,2]
[348121706,1736337041189,-980.34,0.0001027,2]
[348121708,1736337041199,-500.0,0.0001027,2]
[348121710,1736337041208,-500.0,0.0001027,2]
[348121712,1736337041217,-568.89646783,0.0001027,2]
[348121769,1736337044354,-152.0,9.89e-05,2]
[348121770,1736337044364,-1104.82,9.997e-05,2]
[348121771,1736337044374,-468.93,0.0001,2]
[348121773,1736337044425,-22.9,0.0001,2]
[348121774,1736337044435,-3.91353217,0.0001027,2]
[348121775,1736337044445,-500.0,0.0001027,2]
[348121776,1736337044455,-500.0,0.0001027,2]
[348121777,1736337044464,-500.0,0.0001027,2]
[348121778,1736337044474,-430.06426843,0.0001027,2]
[348121779,1736337044483,-500.0,0.0001027,2]
[348121780,1736337044492,-500.0,0.0001027,2]
[348121781,1736337044502,-500.0,0.0001027,2]
[348121782,1736337044511,-500.0,0.0001027,2]
[348121783,1736337044521,-500.0,0.0001027,2]
[348121784,1736337044530,-648.45,0.0001027,2]
[348121785,1736337044539,-566.35,0.0001027,2]
[348121786,1736337044549,-500.0,0.0001027,2]
[348121787,1736337044558,-598.98,0.0001027,2]
[348121788,1736337044568,-500.0,0.0001027,2]
[348121789,1736337044578,-398.86921737,0.0001027,2]
[348121790,1736337044587,-500.0,0.0001027,2]
[348121791,1736337044596,-500.0,0.0001027,2]
[348121792,1736337044607,-500.0,0.0001027,2]
[348121793,1736337044616,-335.12167283,0.0001027,2]
[348121796,1736337044717,-1349.19832717,0.0001027,2]
[348121798,1736337044726,-500.0,0.0001027,2]
[348121800,1736337044737,-542.59,0.0001027,2]
[348121802,1736337044748,-466.10605283,0.0001027,2]
[348121847,1736337045239,-33.89394717,0.0001027,2]
[348121848,1736337045248,-236.36453517,0.0001027,2]
[348121857,1736337046599,-263.63546483,0.0001027,2]
[348121858,1736337046610,-500.0,0.0001027,2]
[348121859,1736337046620,-977.4,0.0001027,2]
[348121860,1736337046629,-894.47,0.0001027,2]
[348121861,1736337046639,-500.0,0.0001027,2]
[348121862,1736337046649,-500.0,0.0001027,2]
[348121863,1736337046659,-1491.39,0.0001027,2]
[348121864,1736337046668,-500.0,0.0001027,2]
[348121865,1736337046681,-967.4,0.0001027,2]
[348121866,1736337046691,-500.0,0.0001027,2]
[348121867,1736337046701,-500.0,0.0001027,2]
[348121868,1736337046710,-14.26693517,0.0001027,2]
[348121869,1736337046904,-485.73306483,0.0001027,2]
[348121870,1736337046914,-500.0,0.0001027,2]
[348121871,1736337046923,-1396.74054587,0.0001027,2]
[348121872,1736337046935,-851.55945413,0.0001027,2]
[348121873,1736337046945,-500.0,0.0001027,2]
[348121874,1736337046955,-819.35,0.0001027,2]
[348121876,1736337046964,-505.05392241,0.0001027,2]
[348121877,1736337046974,-500.0,0.0001027,2]
[348121879,1736337046983,-260.116441,0.0001027,2]
[348121881,1736337046994,-505.34606641,0.0001027,2]
[348121883,1736337047005,-505.47049183,0.0001027,2]
[348121884,1736337047014,-1344.01,0.00010271,2]
[348121886,1736337047024,-747.46,0.00010271,2]
[348121888,1736337047033,-500.0,0.00010271,2]
[348121890,1736337047043,-500.0,0.00010271,2]
[348121892,1736337047052,-500.0,0.00010271,2]
[348121894,1736337047062,-1446.53362422,0.00010271,2]
[348122017,1736337305802,207.34789221,0.00010271,30]
[348122018,1736337515524,6310.9,0.0001137,30]
[348122352,1736338230808,150.0,0.00018089,120]
[348122359,1736338231880,-604.77,8.219e-05,2]
[348122360,1736338231890,-342.66,8.667e-05,2]
[348122361,1736338231900,-1672.8773268,8.668e-05,2]
[348122362,1736338231933,-857.76981249,8.668e-05,2]
[348122363,1736338231944,-1000.0,8.668e-05,2]
[348122364,1736338231956,-558.45,8.668e-05,2]
[348122365,1736338231967,-492.21,8.668e-05,2]
[348122366,1736338231979,-1162.15180048,8.668e-05,2]
[348122367,1736338231991,-818.0,8.668e-05,2]
[348122368,1736338232002,-255.3829171,8.668e-05,2]
[348122369,1736338232013,-309.76,8.668e-05,2]
[348122370,1736338232024,-263.47079128,8.668e-05,2]
[348122371,1736338232035,-409.444,8.668e-05,2]
[348122372,1736338232047,-468.45208656,8.668e-05,2]
[348122373,1736338232058,-353.01795256,8.668e-05,2]
[348122374,1736338232069,-1676.0,8.668e-05,2]
[348122375,1736338232080,-401.921664,8.668e-05,2]
[348122376,1736338232098,-10863.87164873,8.668e-05,2]
[348122377,1736338232107,-186.73,8.704e-05,2]
[348122378,1736338232116,-250.0,8.744e-05,2]
[348122379,1736338232126,-247.5,9.195e-05,2]
[348122380,1736338232135,-490.64,9.196e-05,2]
[348122381,1736338232144,-490.88,9.196e-05,2]
[348122382,1736338232153,-501.38,9.196e-05,2]
[348122383,1736338232163,-492.11,9.197e-05,2]
[348122384,1736338232172,-507.68,9.198e-05,2]
[348122385,1736338232181,-504.7,9.199e-05,2]
[348122386,1736338232190,-1000.0,9.2e-05,3]
[348122387,1736338232201,-503.11,9.201e-05,2]
[348122388,1736338232210,-494.16,9.204e-05,2]
[348122389,1736338232219,-504.71,9.208e-05,2]
[348122390,1736338232228,-506.46,9.214e-05,2]
[348122391,1736338232238,-507.5,9.224e-05,2]
[348122392,1736338232247,-497.16,9.238e-05,2]
[348122393,1736338232256,-493.27,9.259e-05,2]
[348122395,1736338232265,-490.25,9.291e-05,2]
[348122397,1736338232274,-2000.0,9.3e-05,3]
[348122399,1736338232283,-499.94,9.328e-05,2]
[348122401,1736338232292,-508.93,9.336e-05,2]
[348122403,1736338232300,-494.9,9.347e-05,2]
[348122405,1736338232310,-150.0,9.355e-05,2]
[348122407,1736338232319,-1000.0,9.355e-05,2]
[348122408,1736338232328,-507.44,9.355e-05,2]
[348122411,1736338232338,-506.49,9.355e-05,2]
[348122412,1736338232347,-509.81,9.355e-05,2]
[348122414,1736338232356,-3000.0,9.4e-05,3]
[348122416,1736338232366,-494.69,9.5e-05,2]
[348122418,1736338232375,-492.41,9.5e-05,2]
[348122420,1736338232384,-498.99,9.5e-05,2]
[348122422,1736338232394,-503.69,9.5e-05,2]
[348122424,1736338232404,-503.96,9.5e-05,2]
[348122426,1736338232414,-3631.64122808,9.5e-05,3]
[348122429,1736338232426,-368.35877192,9.5e-05,3]
[348122431,1736338232435,-5100.0,9.6e-05,3]
[348122433,1736338232444,-1000.0,9.7e-05,3]
[348122435,1736338232453,-342.66,9.75e-05,2]
[348122436,1736338232463,-1000.0,9.8e-05,3]
[348122438,1736338232472,-150.0,9.841e-05,2]
[348122440,1736338232481,-2120.09793524,9.865e-05,2]
[348122442,1736338232493,-9519.6,9.865e-05,2]
[348122444,1736338232505,-353.730012,9.865e-05,2]
[348122449,1736338232534,-670.54,9.865e-05,2]
[348122450,1736338232562,-21949.03205276,9.865e-05,2]
[348122452,1736338232571,-1500.0,9.899e-05,2]
[348122454,1736338232580,-495.52,9.899e-05,2]
[348122456,1736338232591,-506.41,9.899e-05,2]
[348122458,1736338232601,-1000.0,9.9e-05,3]
[348122459,1736338232611,-202.84010374,9.95e-05,2]
[348122460,1736338232619,-150.0,9.96e-05,2]
[348122461,1736338232628,-154.002,9.97e-05,2]
[348122462,1736338232637,-3000.0,0.0001,3]
[348122463,1736338232646,-1000.0,0.0001,3]
[348122464,1736338232656,-202.84010387,0.0001,2]
[348122465,1736338232665,-202.84010374,0.0001,2]
[348122466,1736338232677,-202.84010374,0.0001005,2]
[348122467,1736338232687,-1000.0,0.00010073,2]
[348122468,1736338232696,-37112.4434,0.00010073,2]
[348122469,1736338232706,-202.84010374,0.000101,2]
[348122470,1736338232715,-150.0,0.00010108,2]
[348122471,1736338232725,-156.4,0.00010137,2]
[348122472,1736338232735,-202.84010374,0.0001015,2]
[348122473,1736338232971,-150.0,0.00010151,2]
[348122474,1736338232981,-150.0,0.00010169,2]
[348122475,1736338232991,-5000.0,0.00010169,2]
[348122476,1736338233001,-863.6585,0.00010169,2]
[348122477,1736338233009,-262.0843,0.0001017,2]
[348122478,1736338233019,-1040.2151,0.0001017,2]